bitfinex/quotes_ETHUSD_20251110
["timestamp","ask_amount","ask_price","bid_price","bid_amount"]
[1762736674441,2.7745413,3640.2,3640.1,0.001]
[1762736675642,0.0956,3640.9,3640.1,0.001]
[1762736675643,1.355312,3640.9,3640.1,0.001]
[1762736675879,2.7471018,3640.2,3640.1,0.001]
[1762736676083,3.16316357,3640.2,3640.1,0.001]
[1762736676282,4.1668138,3640.2,3640.1,0.001]
[1762736676594,5.50038211,3640.2,3640.1,0.001]
[1762736677746,4.95428211,3640.2,3640.1,0.001]
[1762736677945,4.26290126,3640.2,3640.1,0.001]
[1762736678171,4.85804476,3640.2,3640.1,0.001]
[1762736678377,5.24194476,3640.2,3640.1,0.001]
[1762736678573,4.83060526,3640.2,3640.1,0.001]
[1762736678787,4.26290126,3640.2,3640.1,0.001]
[1762736679851,2.7471018,3640.2,3640.1,1.1451]
[1762736680182,2.74681992,3640.6,3640.1,1.2819]
[1762736680347,2.74679997,3640.6,3640.5,0.4767]
[1762736680548,2.7471018,3640.2,3640.1,0.001]
[1762736680767,2.7745413,3640.2,3640.1,0.001]
[1762736680946,2.7471018,3640.2,3640.1,0.001]
[1762736681149,2.74695088,3640.4,3640.1,0.677]
[1762736681346,2.74702879,3640.3,3640.1,1.1451]
[1762736681550,2.7471018,3640.2,3640.1,0.2003]
[1762736681779,2.7471018,3640.2,3640.1,0.001]
[1762736682252,3.31018815,3640.2,3640.1,0.001]
[1762736682453,3.47018815,3640.2,3640.1,0.001]
[1762736682653,3.60698815,3640.2,3640.1,0.001]
[1762736683507,4.70670015,3640.2,3640.1,0.001]
[1762736684590,4.1436138,3640.2,3640.1,0.001]
[1762736686107,4.101932,3640.9,3640.1,1.1451]
[1762736686251,2.7471018,3640.2,3640.1,1.1451]
[1762736686453,2.7471018,3640.2,3640.1,1.2819]
[1762736686758,2.7471018,3640.2,3640.1,0.2003]
[1762736687153,2.7471018,3640.2,3640.1,0.001]
[1762736687356,3.32394919,3640.2,3640.1,0.001]
[1762736687586,3.48394919,3640.2,3640.1,0.001]
[1762736687957,3.45650969,3640.2,3640.1,0.001]
[1762736688196,5.00012152,3640.2,3640.1,0.001]
[1762736688382,5.79172552,3640.2,3640.1,0.001]
[1762736688588,5.76428602,3640.2,3640.1,0.001]
[1762736689364,5.37818602,3640.2,3640.1,0.001]
[1762736689593,5.76428602,3640.2,3640.1,0.001]
[1762736691499,5.37818602,3640.2,3640.1,0.001]
[1762736691918,5.76428602,3640.2,3640.1,0.001]
[1762736692406,5.76628602,3640.2,3640.1,0.001]
[1762736692707,5.38018602,3640.2,3640.1,0.001]
[1762736693163,5.79372552,3640.2,3640.1,0.001]
[1762736693362,5.79372552,3640.2,3639.5,0.001]
[1762736693363,4.41277067,3639.6,3639.5,0.001]
[1762736693606,4.8566705,3639.6,3639.5,0.001]
[1762736693822,4.829231,3639.6,3639.5,0.001]
[1762736693966,5.215331,3639.6,3636.9,0.14346184]
[1762736694167,3.00613861,3637.9,3636.7,0.4592]
[1762736694371,5.09778324,3637.9,3636.7,0.4592]
[1762736694593,5.88978724,3637.9,3636.7,0.4592]
[1762736694819,5.50328724,3637.9,3636.7,0.4592]
[1762736695018,5.88978724,3637.9,3636.5,0.1993]
[1762736695610,3.15464489,3637.5,3636.2,0.001]
[1762736695793,5.44883033,3637.5,3636.2,0.001]
[1762736695996,5.24464033,3637.5,3636.2,0.001]
[1762736698453,2.7499725,3636.4,3636.2,0.001]
[1762736698597,5.27220525,3636.4,3636.2,0.001]
[1762736698791,5.24476575,3636.4,3636.2,0.001]
[1762736700196,4.85636575,3636.4,3636.2,0.001]
[1762736700996,5.24476575,3636.4,3636.2,0.001]
[1762736701198,1.665216,3636.4,3636.2,0.001]
[1762736701397,4.0096845,3636.4,3636.2,0.001]
[1762736702103,2.74986191,3636.6,3636.3,0.494]
[1762736702104,2.74989422,3636.6,3636.3,0.494]
[1762736702308,2.74989422,3636.6,3636.3,0.001]
[1762736702309,2.7499725,3636.4,3636.3,0.001]
[1762736702512,1.259712,3636.5,3636.3,0.001]
[1762736702726,1.259712,3636.4,3636.3,0.957]
[1762736703045,4.0096845,3636.4,3636.3,0.001]
[1762736703256,4.037124,3636.4,3636.3,0.001]
[1762736703419,4.3980845,3636.4,3636.3,0.001]
[1762736703602,2.75095595,3635.1,3634.7,0.463]
[1762736703799,2.751183,3634.8,3634.7,0.463]
[1762736703998,2.751183,3634.8,3633.7,0.1861]
[1762736703999,0.0274395,3634.8,3634.2,0.463]
[1762736704228,2.75134376,3634.6,3634.2,0.463]
[1762736704501,0.0976,3635.3,3634.5,0.493]
[1762736704502,2.75128523,3634.7,3634.5,0.493]
[1762736704724,1.357312,3635.3,3634.5,0.493]
[1762736704947,1.259712,3635.3,3635.2,0.1971]
[1762736705130,1.259712,3635.4,3635.2,0.6901]
[1762736705300,1.259712,3635.3,3635.2,0.6901]
[1762736705702,2.7501934,3636.2,3635.2,1.1531]
[1762736705703,2.75012375,3636.2,3635.2,1.1531]
[1762736705904,0.405504,3636.3,3635.5,0.493]
[1762736706097,2.74944323,3637.1,3636.2,0.1971]
[1762736706343,0.57723793,3637.0,3635.6,0.463]
[1762736706513,2.75050196,3635.7,3635.6,0.463]
[1762736706711,2.75014177,3636.2,3635.6,0.463]
[1762736706899,1.259712,3637.0,3635.6,0.956]
[1762736707102,2.75050196,3635.7,3635.6,0.956]
[1762736707302,2.75050196,3635.7,3635.6,1.0928]
[1762736707547,2.7503595,3635.9,3635.6,1.0928]
[1762736707709,0.1368,3636.2,3635.8,0.493]
[1762736708039,0.1368,3636.2,3636.1,0.6901]
[1762736708244,0.3543616,3637.8,3636.1,1.1531]
[1762736708444,2.74981528,3636.7,3636.5,0.6298]
[1762736708600,0.1368,3637.1,3636.5,0.6298]
[1762736708802,0.1368,3637.1,3636.6,0.956]
[1762736709006,0.486,3638.2,3637.0,0.493]
[1762736709007,2.84622223,3638.2,3637.0,0.493]
[1762736709207,2.74908637,3637.6,3637.0,0.493]
[1762736709445,0.1368,3637.9,3637.3,0.1368]
[1762736709614,0.1368,3637.9,3637.5,0.493]
[1762736709945,2.74906531,3637.6,3637.5,0.493]
[1762736710164,2.74906531,3637.6,3637.3,0.1368]
[1762736710165,4.00892847,3637.4,3637.3,0.1368]
[1762736710303,2.74982126,3636.6,3636.1,0.1971]
[1762736710503,0.1368,3637.3,3635.5,0.464]
[1762736710504,2.75012375,3636.2,3635.5,0.464]
[1762736710706,1.259712,3636.9,3635.5,0.464]
[1762736710707,0.1368,3636.6,3636.1,0.6901]
[1762736711017,2.75004812,3636.3,3636.2,0.493]
[1762736711328,2.75004812,3636.3,3636.1,0.3339]
[1762736711329,2.75012375,3636.2,3636.1,0.1971]
[1762736711538,2.75012375,3636.2,3635.9,0.1378]
[1762736711539,2.75027502,3636.0,3635.9,0.1378]
[1762736711719,2.77771452,3636.0,3635.9,0.001]
[1762736711931,4.85145566,3636.0,3635.9,0.001]
[1762736712257,5.67279916,3636.0,3635.9,0.001]
[1762736712462,5.64535966,3636.0,3635.9,0.001]
[1762736712605,5.64535966,3636.0,3635.1,0.001]
[1762736712606,2.75088028,3635.2,3635.1,1e-08]
[1762736712801,4.51369628,3635.2,3635.1,1e-08]
[1762736713040,4.01059228,3635.2,3635.1,1e-08]
[1762736714555,1.259712,3635.2,3635.1,0.66010001]
[1762736714904,0.405504,3636.1,3635.1,0.66010001]
[1762736715107,2.74941259,3637.2,3635.2,0.463]
[1762736715434,2.75018753,3636.2,3635.3,0.34110628]
[1762736715744,2.75022193,3636.1,3635.3,0.34110628]
[1762736715902,1.259712,3636.1,3635.4,0.463]
[1762736716111,1.259712,3636.4,3635.4,0.463]
[1762736716412,4.01012657,3635.9,3635.4,0.463]
[1762736716664,1.259712,3636.0,3635.4,0.463]
[1762736716811,1.259712,3636.3,3635.4,0.463]
[1762736717156,2.75065328,3635.5,3635.4,0.463]
[1762736717526,1.259712,3636.3,3635.4,0.463]
[1762736718010,1.665216,3636.5,3635.4,0.463]
[1762736718357,2.75012375,3636.2,3635.4,0.463]
[1762736718508,1.259712,3636.5,3635.4,0.463]
[1762736718728,1.259712,3636.6,3635.4,0.463]
[1762736718919,2.75040333,3635.9,3635.4,0.463]
[1762736719369,2.75044329,3635.8,3635.4,0.463]
[1762736719567,2.75025327,3636.1,3635.4,0.463]
[1762736719769,2.75027502,3636.0,3635.5,0.32138245]
[1762736719933,2.75004812,3636.3,3636.2,0.1971]
[1762736720329,2.75004812,3636.3,3636.2,0.6601]
[1762736720556,1.259712,3636.9,3636.2,0.6601]
[1762736720862,2.7499725,3636.4,3636.3,0.463]
[1762736721171,2.75004812,3636.3,3636.2,0.1971]
[1762736721692,2.75035066,3635.9,3635.8,0.463]
[1762736721838,1.355612,3636.9,3635.1,0.19710001]
[1762736721839,2.75070566,3635.5,3635.4,0.463]
[1762736722192,1.259712,3637.2,3635.4,0.463]
[1762736722475,0.25569386,3637.1,3636.3,0.1971]
[1762736722637,0.25569386,3637.0,3636.3,0.1971]
[1762736722843,1.259712,3636.8,3636.5,0.1368]
[1762736723177,0.25611398,3636.7,3636.5,0.1368]
[1762736723378,2.74959443,3636.9,3636.8,0.493]
[1762736723674,2.74959443,3636.9,3636.3,0.6601]
[1762736723675,2.74990823,3636.5,3636.3,0.6601]
[1762736723841,2.74975719,3636.7,3636.5,0.1368]
[1762736723842,2.74977388,3636.7,3636.5,0.1368]
[1762736724044,0.1368,3637.1,3636.6,0.493]
[1762736724241,2.74974564,3636.7,3636.6,0.493]
[1762736724450,0.25647362,3636.7,3636.6,0.956]
[1762736724844,2.74924305,3637.4,3636.6,0.956]
[1762736725063,2.74938092,3637.2,3637.0,0.493]
[1762736725243,0.25642771,3637.1,3637.0,0.1368]
[1762736725643,0.25642771,3637.1,3637.0,0.6298]
[1762736725882,0.25642771,3637.1,3637.0,1.0928]
[1762736726257,3.00587094,3637.1,3637.0,1.0928]
[1762736726498,0.25642771,3637.1,3637.0,4.79499999]
[1762736726795,0.002,3637.9,3637.0,4.79499999]
[1762736726939,0.25633611,3637.4,3637.1,4.30199999]
[1762736727146,0.25633611,3637.3,3637.2,3.83899999]
[1762736727395,0.25633611,3637.3,3637.2,4.30199999]
[1762736727545,0.25633611,3637.3,3637.2,4.79499999]
[1762736728147,3.00562816,3637.3,3637.2,4.79499999]
[1762736728386,3.00562816,3637.3,3637.2,3.83899999]
[1762736729825,0.25633611,3637.3,3637.2,4.33199999]
[1762736730027,0.002,3637.4,3637.2,5.22819999]
[1762736730227,0.002,3637.4,3637.3,4.79499999]
[1762736731192,0.002,3637.4,3637.3,7.54429204]
[1762736731512,0.002,3637.4,3637.3,9.02929204]
[1762736731719,0.002,3637.4,3637.3,7.50120015]
[1762736733026,2.74838854,3638.5,3638.1,3.83099999]
[1762736733213,2.74748101,3639.7,3638.1,4.48479999]
[1762736733390,0.0976,3638.8,3638.1,3.83099999]
[1762736733591,4.01032395,3638.2,3638.1,3.83099999]
[1762736734227,4.68620329,3638.2,3638.1,3.83099999]
[1762736734525,4.94178932,3638.2,3638.1,3.83099999]
[1762736734706,2.7486875,3638.1,3637.6,3.83099999]
[1762736734891,2.7486875,3638.1,3637.5,0.1933]
[1762736734892,2.74906531,3637.6,3637.5,0.1933]
[1762736735292,1.24327282,3637.6,3636.7,0.1971]
[1762736735493,1.259712,3638.1,3636.8,0.4675]
[1762736735732,0.25565062,3638.0,3636.9,0.02749594]
[1762736735917,0.002,3638.2,3637.0,0.4675]
[1762736736094,1.51533006,3638.1,3637.0,0.4675]
[1762736736295,1.259712,3637.8,3637.0,0.4675]
[1762736736591,4.00862617,3637.8,3637.7,0.1368]
[1762736737499,4.00862617,3637.8,3637.7,0.5973]
[1762736737922,4.00862617,3637.8,3637.7,0.1368]
[1762736738131,1.259712,3637.8,3637.7,0.1368]
[1762736738429,2.74891417,3637.8,3637.7,0.1368]
[1762736739614,2.74891417,3637.8,3636.8,3.85]
[1762736739615,2.74954715,3637.0,3636.8,3.85]
[1762736739841,2.74954715,3637.0,3636.7,0.1971]
[1762736740003,2.74954715,3637.0,3636.9,0.1368]
[1762736740405,2.88579325,3637.7,3636.9,0.5973]
[1762736740406,0.1368,3637.7,3636.9,0.5973]
[1762736740604,0.1368,3637.7,3637.0,0.4675]
[1762736740840,2.74944323,3637.1,3637.0,0.4675]
[1762736741161,0.1368,3637.7,3637.0,0.4675]
[1762736741310,2.74944323,3637.1,3637.0,0.4675]
[1762736741642,2.74951883,3637.0,3636.9,0.1368]
[1762736742168,2.7499725,3636.4,3636.1,0.001]
[1762736742322,2.75012375,3636.2,3636.1,0.001]
[1762736742708,2.77756325,3636.2,3636.1,0.001]
[1762736743046,4.16983575,3636.2,3636.1,0.001]
[1762736743347,5.93675449,3636.2,3636.1,0.001]
[1762736743510,5.90931499,3636.2,3636.1,0.001]
[1762736743724,5.93675449,3636.2,3636.1,0.001]
[1762736743924,5.90931499,3636.2,3636.1,0.001]
[1762736744324,4.26573016,3636.2,3636.1,0.001]
[1762736744723,4.42793016,3636.2,3636.1,0.001]
[1762736745124,4.26573016,3636.2,3636.1,0.001]
[1762736745647,4.26573016,3636.2,3636.1,0.1943]
[1762736745856,1.259712,3636.2,3636.1,0.1943]
[1762736746058,0.1368,3636.6,3636.1,1.1223]
[1762736746258,0.25604725,3636.5,3636.1,1.1223]
[1762736746457,4.00978042,3636.3,3636.1,0.6548]
[1762736746630,2.75012375,3636.2,3636.1,0.6548]
[1762736746837,2.75012375,3636.2,3636.1,0.001]
[1762736748200,0.1368,3636.6,3636.1,0.1838]
[1762736748468,2.75012375,3636.2,3636.1,0.7968]
[1762736749580,2.75012375,3636.2,3636.1,0.001]
[1762736751282,2.77756325,3636.2,3636.1,0.001]
[1762736751604,4.75003035,3636.2,3636.1,0.001]
[1762736751742,5.77036028,3636.2,3636.1,0.001]
[1762736752169,1.51587743,3636.2,3636.1,0.001]
[1762736752353,4.00983575,3636.2,3636.1,0.001]
[1762736753448,4.00983575,3636.2,3636.1,0.1838]
[1762736754376,4.00983575,3636.2,3636.1,0.001]
[1762736755080,4.42567525,3636.2,3636.1,0.001]
[1762736755293,5.31924183,3636.2,3636.1,0.001]
[1762736755598,5.69730633,3636.2,3636.1,0.001]
[1762736755764,5.95330537,3636.2,3636.1,0.001]
[1762736756593,5.95330537,3636.2,3635.7,0.001]
[1762736756594,3.15593031,3635.8,3635.7,1e-08]
[1762736756745,5.35851218,3635.8,3635.7,1e-08]
[1762736756941,5.97310854,3635.8,3635.7,1e-08]
[1762736758247,5.31166868,3635.8,3635.7,1e-08]
[1762736758547,5.33107268,3635.8,3635.7,1e-08]
[1762736759825,5.71717268,3635.8,3635.7,1e-08]
[1762736759990,6.00027291,3635.8,3635.7,1e-08]
[1762736760192,5.97283341,3635.8,3635.7,1e-08]
[1762736760736,5.58673341,3635.8,3635.7,1e-08]
[1762736761312,4.76556868,3635.8,3635.7,1e-08]
[1762736761715,5.31166868,3635.8,3635.7,1e-08]
[1762736762025,4.92776868,3635.8,3635.7,1e-08]
[1762736762380,5.71727268,3635.8,3635.7,1e-08]
[1762736762625,5.74471218,3635.8,3635.7,1e-08]
[1762736763148,8.48225676,3635.8,3635.7,1e-08]
[1762736763464,1.259712,3634.7,3633.2,0.4646]
[1762736763663,2.75231882,3633.3,3633.2,0.4646]
[1762736763869,2.75231882,3633.3,3633.1,0.1826]
[1762736763870,2.75239458,3633.2,3633.1,0.1826]
[1762736764018,2.75239458,3633.2,3633.1,0.6503]
[1762736764666,0.486,3634.9,3633.1,1.1149]
[1762736764849,0.81453751,3634.8,3633.3,0.4677]
[1762736765164,1.54282783,3634.7,3633.1,0.1826]
[1762736765331,2.75239458,3633.2,3633.1,0.1826]
[1762736765918,1.259712,3633.8,3633.1,0.1826]
[1762736766121,0.405504,3634.5,3633.1,1.1149]
[1762736766358,0.405504,3634.3,3633.1,1.1149]
[1762736766561,1.43349812,3634.7,3633.2,0.4646]
[1762736766758,0.0976,3634.9,3633.2,0.4646]
[1762736766759,1.357312,3634.9,3633.2,0.4646]
[1762736767075,3.48736415,3635.8,3633.3,0.02752318]
[1762736767254,2.75131213,3634.7,3633.7,2.75199617]
[1762736767450,1.259712,3635.5,3633.8,0.55041495]
[1762736767621,0.36814642,3635.7,3633.8,0.55041495]
[1762736767622,4.0109707,3634.7,3634.6,0.1826]
[1762736768163,0.36814642,3635.7,3634.6,0.6503]
[1762736768324,0.60628739,3635.6,3634.6,0.1826]
[1762736768523,0.60628739,3635.6,3634.6,0.6472]
[1762736768524,1.259712,3635.4,3634.6,0.6472]
[1762736768737,0.35070613,3635.6,3634.6,0.6472]
[1762736768738,2.7512587,3634.7,3634.6,0.6472]
[1762736769033,2.7512587,3634.7,3633.8,2.75192916]
[1762736769034,2.751183,3634.8,3634.7,0.1826]
[1762736769231,2.94437935,3636.0,3633.9,3.85]
[1762736769232,2.75178866,3634.0,3633.9,3.85]
[1762736769545,0.405504,3635.4,3633.3,3.85]
[1762736769546,2.75132704,3634.7,3633.3,3.85]
[1762736769754,2.75210933,3633.6,3633.3,0.4646]
[1762736769926,2.75219685,3633.5,3633.3,0.4646]
[1762736770257,2.7514858,3634.4,3633.3,0.4646]
[1762736770258,2.75224307,3633.4,3633.3,0.4646]
[1762736770462,2.75239458,3633.2,3632.9,0.6474]
[1762736770669,2.75190828,3633.9,3632.9,0.6474]
[1762736770670,2.75234031,3633.3,3632.9,0.1828]
[1762736770961,2.75239458,3633.2,3632.9,0.1828]
[1762736771266,0.27519083,3633.8,3633.2,0.4646]
[1762736771420,2.75210533,3633.6,3633.5,0.4677]
[1762736771621,1.259712,3634.4,3633.5,0.4677]
[1762736771856,2.75199265,3633.8,3633.5,0.4677]
[1762736772057,1.259712,3634.2,3633.5,0.4677]
[1762736772245,0.27514334,3634.4,3633.5,0.4677]
[1762736772419,0.27514334,3634.4,3633.6,0.4646]
[1762736772420,2.75201585,3633.7,3633.6,0.4646]
[1762736772625,0.405504,3634.7,3633.5,0.4677]
[1762736772626,2.75209158,3633.6,3633.5,0.4677]
[1762736773061,2.75209158,3633.6,3632.2,0.4646]
[1762736773062,0.405504,3633.5,3632.2,0.4646]
[1762736773355,2.75266658,3632.9,3632.3,0.4646]
[1762736773568,1.259712,3633.5,3632.3,0.4646]
[1762736773569,2.7525639,3633.0,3632.5,0.1376]
[1762736773806,0.1376,3633.2,3632.5,0.1376]
[1762736773923,2.75284919,3632.6,3632.5,0.1376]
[1762736774525,2.75315235,3632.2,3632.1,0.1826]
[1762736774868,2.75301728,3632.4,3632.2,0.4646]
[1762736775024,0.1376,3632.6,3632.2,0.4646]
[1762736775025,2.89046059,3632.6,3632.2,0.4646]
[1762736775223,2.75307656,3632.3,3632.2,0.4646]
[1762736775424,2.75315235,3632.2,3632.1,0.1826]
[1762736775751,0.1454,3632.9,3632.2,0.9323]
[1762736776369,0.1454,3632.9,3632.1,0.1826]
[1762736776370,2.75307656,3632.3,3632.1,0.1826]
[1762736776537,2.75269764,3632.8,3631.8,0.4646]
[1762736776726,2.75307656,3632.3,3632.2,0.1826]
[1762736776928,2.75320675,3632.2,3631.8,0.4646]
[1762736777123,2.75277341,3632.7,3631.8,0.4646]
[1762736777328,2.75315235,3632.2,3632.1,0.1826]
[1762736777648,2.75300657,3632.4,3632.1,0.1826]
[1762736777855,0.1454,3632.9,3632.1,0.6472]
[1762736778049,1.405112,3632.9,3632.1,0.6472]
[1762736778250,1.405112,3632.9,3631.4,0.21013758]
[1762736778251,0.0274395,3632.8,3631.4,0.6472]
[1762736778452,0.405504,3632.8,3631.5,0.4646]
[1762736778660,0.2859112,3632.9,3631.8,2.75339403]
[1762736778661,0.1405112,3632.9,3631.8,2.75339403]
[1762736778963,0.1405112,3632.9,3631.5,0.4646]
[1762736778964,0.405504,3633.3,3631.5,0.4646]
[1762736779174,0.28287172,3633.2,3631.6,0.4646]
[1762736779463,0.73689612,3633.9,3631.6,0.4646]
[1762736779464,1.12529612,3634.6,3633.2,0.6503]
[1762736779665,2.75231882,3633.3,3633.2,0.6503]
[1762736779825,0.58831914,3634.5,3633.2,0.1826]
[1762736779826,0.3884,3634.3,3633.2,0.1826]
[1762736780026,2.75248889,3633.1,3632.7,0.4646]
[1762736780267,2.75241593,3633.2,3633.0,0.1826]
[1762736780431,2.75247034,3633.1,3633.0,0.1826]
[1762736780633,0.405504,3633.5,3632.1,0.4646]
[1762736780827,2.75299989,3632.5,3632.2,0.4646]
[1762736781062,2.75301109,3632.4,3632.2,0.4646]
[1762736781272,0.405504,3633.3,3632.2,0.4646]
[1762736781475,2.75275021,3632.8,3632.3,0.4677]
[1762736781645,2.75293085,3632.5,3632.3,0.4677]
[1762736781959,2.75299736,3632.5,3632.3,0.3677]
[1762736782174,0.405504,3633.4,3632.4,0.9323]
[1762736782333,0.32576104,3633.3,3632.6,0.4677]
[1762736782527,0.58898215,3633.9,3632.6,0.4677]
[1762736782727,2.75253802,3633.1,3632.7,0.4646]
[1762736783228,2.26260636,3634.0,3632.7,0.4646]
[1762736783229,0.405504,3633.9,3632.7,0.4646]
[1762736783429,0.52254642,3633.8,3632.7,0.4646]
[1762736783625,0.26681104,3633.8,3632.7,0.4646]
[1762736784025,2.75244769,3633.2,3632.7,0.4646]
[1762736784233,1.259712,3633.8,3632.7,0.4646]
[1762736784473,2.75240858,3633.2,3633.1,0.1826]
[1762736784671,2.75269764,3632.8,3632.7,0.4646]
[1762736784839,2.75269764,3632.8,3632.2,0.4646]
[1762736785067,2.75287828,3632.6,3632.2,0.6089312]
[1762736785250,2.75304935,3632.4,3632.2,0.4646]
[1762736785450,2.75307656,3632.3,3632.2,0.4646]
[1762736785779,2.75254475,3633.1,3632.3,0.1376]
[1762736785780,0.0274395,3632.5,3632.3,0.1376]
[1762736785940,2.75300077,3632.4,3632.3,0.1376]
[1762736786471,0.1454,3632.9,3632.3,0.1376]
[1762736786472,2.75262458,3632.9,3632.3,1.0699]
[1762736786672,2.7525461,3633.0,3632.8,0.4677]
[1762736786832,0.1376,3633.1,3632.8,0.4677]
[1762736787039,2.7525551,3633.0,3632.8,0.4677]
[1762736787236,2.75240844,3633.2,3632.8,0.4677]
[1762736787435,0.57876941,3633.8,3632.9,0.4646]
[1762736787641,2.75239458,3633.2,3633.1,0.3202]
[1762736787875,2.75239458,3633.2,3633.1,0.1376]
[1762736788037,0.1454,3634.0,3633.1,0.6022]
[1762736788390,2.7522264,3633.5,3633.3,0.4677]
[1762736788681,0.1454,3634.0,3633.1,0.1826]
[1762736788886,0.8468533,3633.9,3633.1,0.1826]
[1762736789087,2.75217971,3633.5,3633.1,0.1826]
[1762736789291,2.75182967,3634.0,3633.2,3.24451495]
[1762736789491,2.75177442,3634.1,3633.4,0.4677]
[1762736789706,2.75202505,3633.7,3633.4,0.4677]
[1762736789856,2.75210751,3633.6,3633.4,0.4677]
[1762736790456,2.75216229,3633.6,3633.4,0.4677]
[1762736790667,0.1,3634.2,3633.4,0.4677]
[1762736791076,2.75172547,3634.1,3633.4,0.9323]
[1762736791254,0.4884,3634.6,3633.4,1.32177398]
[1762736791456,3.59874204,3634.5,3633.5,0.4646]
[1762736791667,2.75164661,3634.2,3633.5,0.4646]
[1762736791898,2.75163731,3634.2,3634.1,0.1826]
[1762736792097,0.73889612,3635.1,3634.1,0.6336]
[1762736792281,0.84757027,3635.0,3634.1,0.6336]
[1762736792490,0.25656714,3634.9,3634.3,2.75154967]
[1762736792661,2.75144694,3634.5,3634.2,0.478]
[1762736792866,2.75134497,3634.6,3634.2,0.478]
[1762736793060,3.02828451,3635.1,3634.2,0.478]
[1762736793288,2.75125964,3634.7,3634.2,0.478]
[1762736793502,0.002,3635.1,3634.6,0.451]
[1762736793682,0.002,3635.1,3635.0,0.451]
[1762736793996,2.75125134,3634.8,3634.2,1.737712]
[1762736794207,2.75125134,3634.8,3634.3,0.478]
[1762736794799,2.75126592,3634.7,3634.3,0.478]
[1762736795007,2.7511897,3634.8,3634.3,0.478]
[1762736795164,2.7511897,3634.8,3634.6,0.451]
[1762736795365,4.0109707,3634.7,3634.6,0.451]
[1762736795575,4.0109707,3634.7,3634.6,0.929]
[1762736795878,1.259712,3634.7,3634.6,0.929]
[1762736796202,1.259712,3634.9,3634.6,0.929]
[1762736796499,0.002,3635.1,3634.6,0.929]
[1762736797059,1.259712,3634.9,3634.6,0.929]
[1762736797263,2.7512587,3634.7,3634.6,0.929]
[1762736797501,0.0976,3634.9,3634.1,0.1826]
[1762736797665,0.0976,3634.9,3634.1,0.6606]
[1762736797870,2.75163722,3634.2,3634.1,0.6606]
[1762736798205,1.665216,3634.6,3633.6,0.478]
[1762736798386,2.7514858,3634.4,3633.3,1.964]
[1762736798591,2.75192695,3633.9,3633.3,1.486]
[1762736798909,2.75156451,3634.3,3633.9,0.1368]
[1762736799128,0.1368,3634.5,3634.2,0.1985]
[1762736799405,2.75156151,3634.3,3634.2,0.1985]
[1762736799986,2.75178866,3634.0,3633.9,0.1368]
[1762736800702,0.0274395,3634.1,3633.5,0.1854]
[1762736800904,2.75209158,3633.6,3633.5,0.1854]
[1762736801106,0.1368,3634.3,3633.7,0.1376]
[1762736801610,2.75194011,3633.8,3633.7,0.1376]
[1762736801973,2.75194011,3633.8,3633.7,0.5886]
[1762736802201,2.75194011,3633.8,3633.7,0.1376]
[1762736802373,2.75194011,3633.8,3633.1,0.1826]
[1762736802374,0.0274395,3633.8,3633.1,0.1826]
[1762736802589,2.75216733,3633.5,3633.4,0.1376]
[1762736802904,2.75264406,3632.9,3632.5,0.478]
[1762736803202,2.75209158,3633.6,3632.5,0.478]
[1762736803203,2.75255739,3633.0,3632.5,0.478]
[1762736803501,0.405504,3633.2,3633.1,0.1376]
[1762736803710,0.405504,3633.7,3632.5,0.478]
[1762736804002,2.75258547,3633.0,3632.5,0.478]
[1762736804209,0.405504,3633.6,3632.5,0.478]
[1762736804513,2.7527983,3632.7,3632.5,0.478]
[1762736804808,2.7525692,3633.0,3632.5,0.478]
[1762736804993,2.75278473,3632.7,3632.6,0.451]
[1762736805981,2.75300077,3632.4,3632.3,0.479]
[1762736806483,2.7528286,3632.7,3632.3,0.93]
[1762736806703,2.75262187,3632.9,3632.3,0.93]
[1762736806704,0.405504,3633.3,3632.3,0.93]
[1762736807008,0.405504,3633.3,3632.3,0.452]
[1762736807213,2.75297862,3632.5,3632.3,0.452]
[1762736807420,2.7529898,3632.5,3632.3,0.452]
[1762736807577,2.7529898,3632.5,3632.4,0.4924]
[1762736808110,0.405504,3633.3,3632.4,0.4924]
[1762736808307,2.75286899,3632.6,3632.4,0.4924]
[1762736808615,2.75284676,3632.7,3632.5,3.85]
[1762736808774,2.75269462,3632.9,3632.5,4.2817]
[1762736808973,2.75260504,3633.0,3632.6,0.0043]
[1762736809178,2.75269441,3632.9,3632.8,0.4273]
[1762736809712,2.75269441,3632.9,3632.8,0.9175]
[1762736810406,2.75284919,3632.6,3632.5,3.85]
[1762736813973,2.75284919,3632.6,3632.3,0.001]
[1762736813974,2.75300077,3632.4,3632.3,0.001]
[1762736814395,2.81820077,3632.4,3632.3,0.001]
[1762736814598,3.73104427,3632.4,3632.3,0.001]
[1762736814878,5.62546612,3632.4,3632.3,0.001]
[1762736815076,4.41882322,3631.6,3631.5,0.001]
[1762736815287,4.42412322,3631.6,3631.5,0.001]
[1762736815486,4.91252322,3631.6,3631.5,0.001]
[1762736815705,5.96673515,3631.6,3631.5,0.001]
[1762736816219,5.96673515,3631.6,3629.9,0.1984]
[1762736816220,8.86573515,3631.6,3629.9,0.1984]
[1762736816422,8.86573515,3631.6,3629.7,0.1984]
[1762736816423,4.47497824,3631.0,3629.7,0.1984]
[1762736816770,4.96337824,3631.0,3630.1,0.1984]
[1762736817012,4.75564784,3631.0,3630.1,0.1984]
[1762736817216,5.24404784,3631.0,3629.7,0.1984]
[1762736817521,0.405504,3630.1,3629.0,0.1984]
[1762736817688,0.0058,3629.8,3629.0,0.1984]
[1762736817890,2.75548998,3629.2,3629.0,0.1984]
[1762736818109,2.75550411,3629.1,3629.0,0.1984]
[1762736818307,0.405504,3629.6,3628.7,0.4902]
[1762736818510,0.405504,3629.5,3628.7,0.4902]
[1762736818678,3.16072098,3629.5,3628.7,0.4902]
[1762736818892,0.1227,3630.3,3629.4,0.6667]